fUSD/lending_fUSD_20260413
["ID","MTS","AMOUNT","RATE_DAILY","PERIOD"]
[420420403,1776093275946,-203.79143642,0.00029863,60]
[420420404,1776093276004,-162.77554069,0.00029863,60]
[420420405,1776093276059,-150.0,0.00029863,60]
[420420406,1776093276125,-150.0,0.00029863,60]
[420420407,1776093276191,-278.15591797,0.00029863,60]
[420420408,1776093276258,-150.0,0.00029863,60]
[420420409,1776093276337,-150.0,0.00029863,60]
[420420410,1776093276405,-3311043.4855655,0.000299,120]
[420420411,1776093276473,-5000000.0,0.000299,120]
[420420412,1776093276536,-668934.03153942,0.000299,120]
[420420413,1776093280708,-4331065.96846058,0.000299,120]
[420420414,1776093280767,-4668934.03153942,0.000299,120]
[420420415,1776093307072,-776.72,0.0002,30]
[420420416,1776093307133,-776.72,0.00022356,30]
[420420417,1776093307197,-776.72,0.00024713,60]
[420420418,1776093307281,-776.72,0.00027069,60]
[420420419,1776093307366,-776.72,0.00029425,60]
[420420420,1776093307446,-331065.96846058,0.000299,120]
[420420421,1776093307542,-5000000.0,0.000299,120]
[420420422,1776093307663,-3665050.43153942,0.000299,120]
[420420423,1776093333037,-1334949.56846058,0.000299,120]
[420420424,1776093333099,-5000000.0,0.000299,120]
[420420425,1776093333154,-5000000.0,0.000299,120]
[420420426,1776093333206,-5000000.0,0.000299,120]
[420420427,1776093333259,-445.63,0.00029973,60]
[420420428,1776093333334,-27953.42894324,0.00029999,120]
[420420429,1776093333387,-1774.5709065,0.0003,120]
[420420430,1776093333470,-194.82687753,0.0003,120]
[420420431,1776093333531,-2332.61066288,0.0003,120]
[420420432,1776093333608,-870.16990508,0.0003,120]
[420420433,1776093333675,-643.58764613,0.0003,120]
[420420434,1776093333767,-166.0,0.0003,120]
[420420435,1776093333857,-269.36796976,0.0003,120]
[420420436,1776093333906,-168.4307387,0.0003,120]
[420420437,1776093333956,-848.07893059,0.0003,120]
[420420438,1776093334039,-1042.34,0.0003,30]
[420420439,1776093334124,-2032.65,0.00030082,120]
[420420440,1776093334174,-2032.65,0.00030082,120]
[420420441,1776093334238,-1439.57380422,0.00030082,120]
[420420442,1776093334298,-2163.6,0.00030082,120]
[420420443,1776093334368,-431.87214127,0.00030082,120]
[420420444,1776093334428,-1285.2,0.00030082,120]
[420420445,1776093334486,-1285.2,0.00030082,120]
[420420446,1776093334542,-2205.0,0.00030082,120]
[420420447,1776093334603,-1263.15,0.00030082,120]
[420420448,1776093334653,-1263.15,0.00030082,120]
[420420449,1776093334704,-1042.34,0.000301,30]
[420420450,1776093334767,-222.00222365,0.0003013,120]
[420420451,1776093334815,-1183.38934116,0.0003013,120]
[420420452,1776093334881,-2390.90002099,0.0003013,120]
[420420453,1776093334940,-621.83707735,0.0003013,120]
[420420454,1776093335027,-181.57169618,0.0003013,120]
[420420455,1776093335100,-244.95246403,0.00030133,120]
[420420456,1776093335155,-1000.0,0.00030137,120]
[420420457,1776093335222,-1000.0,0.00030137,120]
[420420458,1776093335284,-1000.0,0.00030137,120]
[420420459,1776093335350,-313.7,0.00030137,120]
[420420460,1776093335404,-1297.0,0.00030178,120]
[420420461,1776093335453,-2161.0,0.0003019,120]
[420420462,1776093335502,-1042.34,0.000302,30]
[420420463,1776093335563,-1042.34,0.000303,30]
[420420464,1776093335649,-403.38003935,0.00030358,86]
[420420465,1776093335735,-1510.36,0.00030397,120]
[420420466,1776093335799,-1042.34,0.000304,30]
[420420467,1776093335849,-580.49,0.00030411,120]
[420420468,1776093335902,-233.0,0.00030486,120]
[420420469,1776093335975,-175.0,0.00030491,120]
[420420470,1776093336022,-1042.34,0.000305,30]
[420420471,1776093336072,-1042.34,0.000306,30]
[420420472,1776093336126,-1042.34,0.000307,30]
[420420473,1776093336173,-1042.34,0.000308,30]
[420420474,1776093336220,-209.0,0.0003084,30]
[420420475,1776093336267,-4027.62,0.00030868,30]
[420420476,1776093336317,-1042.34,0.000309,30]
[420420477,1776093336373,-467.0,0.00030979,120]
[420420478,1776093336430,-160.0,0.00031,120]
[420420479,1776093336476,-160.0,0.00031,30]
[420420480,1776093336525,-1042.34,0.00031,30]
[420420481,1776093336580,-1042.34,0.000311,30]
[420420482,1776093336629,-1042.34,0.000312,30]
[420420483,1776093336739,-1042.34,0.000313,30]
[420420484,1776093336813,-1042.34,0.000314,30]
[420420485,1776093336880,-2669.0,0.00031413,120]
[420420486,1776093336935,-155.22043695,0.00031413,120]
[420420487,1776093337003,-778.0,0.00031449,120]
[420420488,1776093337070,-1857.61750125,0.000315,30]
[420420489,1776093337147,-1042.34,0.000315,30]
[420420490,1776093337225,-1297.0,0.00031687,120]
[420420491,1776093337281,-2161.0,0.000317,120]
[420420492,1776093337761,-1726.12,0.00031755,120]
[420420493,1776093337842,-776.72,0.00031782,60]
[420420494,1776093337897,-308.88700738,0.00032,120]
[420420495,1776093337955,-173.46560325,0.00032,120]
[420420496,1776093338021,-236.80044083,0.00032,120]
[420420497,1776093338072,-195.79726724,0.00032,120]
[420420498,1776093338128,-319.75556714,0.00032,120]
[420420499,1776093338179,-167.54107319,0.00032,120]
[420420500,1776093338235,-177.01073457,0.00032,120]
[420420501,1776093338305,-210.49667999,0.00032,120]
[420420502,1776093338368,-655.39936507,0.00032,120]
[420420503,1776093338419,-242.8225624,0.00032,120]
[420420504,1776093338495,-1384.71489045,0.00032,120]
[420420505,1776093338564,-363931.41539652,0.00032,120]
[420420506,1776093338647,-233.0,0.0003201,120]
[420420507,1776093338704,-175.0,0.00032016,120]
[420420508,1776093338756,-4531.07,0.00032188,30]
[420420509,1776093338805,-467.0,0.00032528,120]
[420420510,1776093338867,-2184.06194466,0.00032658,30]
[420420511,1776093338918,-2184.06194466,0.00032767,30]
[420420512,1776093338984,-367.79813426,0.00032822,120]
[420420513,1776093339036,-2212.57894737,0.00032822,120]
[420420514,1776093339087,-2212.57894737,0.00032822,120]
[420420515,1776093339138,-1576.89473684,0.00032822,120]
[420420516,1776093339194,-1576.89473684,0.00032822,120]
[420420517,1776093339254,-1558.42105263,0.00032822,120]
[420420518,1776093339308,-1558.42105263,0.00032822,120]
[420420519,1776093339371,-2144.84210526,0.00032822,120]
[420420520,1776093339424,-2144.84210526,0.00032822,120]
[420420521,1776093339486,-2286.0,0.00032822,120]
[420420522,1776093339548,-2286.0,0.00032822,120]
[420420523,1776093339598,-1825.10526316,0.00032822,120]
[420420524,1776093339650,-1825.10526316,0.00032822,120]
[420420525,1776093339700,-1784.36842105,0.00032822,120]
[420420526,1776093339756,-1784.36842105,0.00032822,120]
[420420527,1776093339833,-2166.15789474,0.00032822,120]
[420420528,1776093339879,-2166.15789474,0.00032822,120]
[420420529,1776093339929,-1830.78947368,0.00032822,120]
[420420530,1776093339986,-1830.78947368,0.00032822,120]
[420420531,1776093340050,-2071.0,0.00032849,120]
[420420532,1776093340099,-1281.5,0.00032849,120]
[420420533,1776093340166,-1281.5,0.00032849,120]
[420420534,1776093340227,-1872.5,0.00032849,120]
[420420535,1776093340308,-1872.5,0.00032849,120]
[420420536,1776093340363,-1379.0,0.00032849,120]
[420420537,1776093340492,-1379.0,0.00032849,120]
[420420538,1776093340560,-1564.91693212,0.00032849,120]
[420420539,1776093340642,-209.0,0.0003286,30]
[420420540,1776093340716,-400.89323548,0.0003287,120]
[420420541,1776093340778,-910.33966119,0.000329,120]
[420420542,1776093340824,-163.18,0.000329,120]
[420420543,1776093340881,-150.0,0.000329,30]
[420420544,1776093340941,-2184.06194466,0.00032904,30]
[420420545,1776093341009,-4210.0,0.00032945,30]
[420420546,1776093341067,-741.0,0.00032945,30]
[420420547,1776093341117,-462.0,0.0003296,30]
[420420548,1776093341165,-1866.0,0.0003296,30]
[420420549,1776093341230,-580.0,0.0003296,30]
[420420550,1776093341278,-538.0,0.0003296,30]
[420420551,1776093341345,-713.0,0.0003296,30]
[420420552,1776093341407,-357.0,0.0003296,30]
[420420553,1776093341462,-627.0,0.0003296,30]
[420420554,1776093341518,-34103.16056919,0.00033,30]
[420420555,1776093341624,-173.46560325,0.00033,120]
[420420556,1776093341677,-195.79726724,0.00033,120]
[420420557,1776093341760,-167.54107319,0.00033,120]
[420420558,1776093341808,-177.01073457,0.00033,120]
[420420559,1776093341861,-655.39936507,0.00033,120]
[420420560,1776093341908,-242.8225624,0.00033,120]
[420420561,1776093341975,-1384.71489045,0.00033,120]
[420420562,1776093342041,-160.0,0.00033,120]
[420420563,1776093342098,-160.0,0.00033,30]
[420420564,1776093342144,-534.68768363,0.00033,120]
[420420565,1776093342196,-1109.67,0.00033,120]
[420420566,1776093342265,-778.0,0.00033021,120]
[420420567,1776093342342,-660.94979113,0.00033022,63]
[420420568,1776093342389,-2184.06194466,0.00033041,30]
[420420569,1776093342439,-1941.89,0.00033113,120]
[420420570,1776093342499,-2184.06194466,0.00033178,30]
[420420571,1776093342571,-1297.0,0.00033271,120]
[420420572,1776093342619,-2161.0,0.00033285,120]
[420420573,1776093342665,-2184.06194466,0.00033288,30]
[420420574,1776093342721,-1686.48,0.000333,120]
[420420575,1776093342793,-729.06,0.000333,120]
[420420576,1776093342847,-895.21,0.000333,120]
[420420577,1776093342938,-180.94,0.000333,120]
[420420578,1776093343013,-2117.97,0.000333,120]
[420420579,1776093343078,-841.49,0.000333,120]
[420420580,1776093343136,-2184.06194466,0.00033425,30]
[420420581,1776093343184,-5034.53,0.00033508,30]
[420420582,1776093343229,-2184.06194466,0.00033562,30]
[420420583,1776093343281,-233.0,0.00033611,120]
[420420584,1776093343352,-175.0,0.00033617,120]
[420420585,1776093343407,-2184.06194466,0.00033699,30]
[420420586,1776093343457,-2184.06194466,0.00033836,30]
[420420587,1776093343508,-173.46560325,0.000339,120]
[420420588,1776093343577,-195.79726724,0.000339,120]
[420420589,1776093343636,-167.54107319,0.000339,120]
[420420590,1776093343700,-177.01073457,0.000339,120]
[420420591,1776093343752,-655.39936507,0.000339,120]
[420420592,1776093343811,-242.8225624,0.000339,120]
[420420593,1776093343859,-1384.71489045,0.000339,120]
[420420594,1776093343904,-4210.0,0.00033945,30]
[420420595,1776093343950,-741.0,0.00033945,30]
[420420596,1776093343995,-2184.06194466,0.00033945,30]
[420420597,1776093344041,-462.0,0.0003396,30]
[420420598,1776093344095,-1866.0,0.0003396,30]
[420420599,1776093344142,-580.0,0.0003396,30]
[420420600,1776093344194,-538.0,0.0003396,30]
[420420601,1776093344255,-713.0,0.0003396,30]
[420420602,1776093344308,-357.0,0.0003396,30]
[420420603,1776093344387,-627.0,0.0003396,30]
[420420604,1776093344441,-445.63,0.0003396,60]
[420420605,1776093344513,-547.79,0.00034,30]
[420420606,1776093344576,-1801.35810595,0.00034,120]
[420420607,1776093344625,-2184.06194466,0.00034082,30]
[420420608,1776093345198,-776.72,0.00034138,90]
[420420609,1776093345291,-467.0,0.00034154,120]
[420420610,1776093345353,-580.49,0.00034212,120]
[420420611,1776093345450,-3042.95,0.000344,30]
[420420612,1776093345523,-150.0,0.0003442,30]
[420420613,1776093345590,-218.75,0.0003443,60]
[420420614,1776093345655,-250.0,0.0003443,60]
[420420615,1776093345707,-218.75,0.0003443,60]
[420420616,1776093345783,-790.1864135,0.0003443,60]
[420420617,1776093345833,-500.0,0.0003443,60]
[420420618,1776093345892,-500.0,0.0003443,60]
[420420619,1776093345956,-500.0,0.0003443,60]
[420420620,1776093346026,-500.0,0.0003443,60]
[420420621,1776093346085,-500.0,0.0003443,60]
[420420622,1776093346165,-500.0,0.0003443,60]
[420420623,1776093346217,-500.0,0.0003443,60]
[420420624,1776093346267,-500.0,0.0003443,60]
[420420625,1776093346315,-500.0,0.0003443,60]
[420420626,1776093346365,-202.5,0.0003443,60]
[420420627,1776093346417,-500.0,0.0003443,60]
[420420628,1776093346473,-500.0,0.0003443,60]
[420420629,1776093346531,-500.0,0.0003443,60]
[420420630,1776093346585,-500.0,0.0003443,60]
[420420631,1776093346638,-500.0,0.0003443,60]
[420420632,1776093346687,-500.0,0.0003443,60]
[420420633,1776093346742,-500.0,0.0003443,60]
[420420634,1776093346799,-218.75,0.0003443,60]
[420420635,1776093346849,-500.0,0.0003443,60]
[420420636,1776093346912,-500.0,0.0003443,60]
[420420637,1776093346976,-500.0,0.0003443,60]
[420420638,1776093347044,-162.4609112,0.0003443,60]
[420420639,1776093347120,-500.0,0.0003443,60]
[420420640,1776093347176,-500.0,0.0003443,60]
[420420641,1776093347254,-259.1092178,0.0003443,60]
[420420642,1776093347305,-181.9279747,0.0003443,60]
[420420643,1776093347354,-218.75,0.0003443,60]
[420420644,1776093347412,-500.0,0.0003443,60]
[420420645,1776093347470,-500.0,0.0003443,60]
[420420646,1776093347544,-500.0,0.0003443,60]
[420420647,1776093347629,-500.0,0.0003443,60]
[420420648,1776093347728,-500.0,0.0003443,60]
[420420649,1776093347798,-500.0,0.0003443,60]
[420420650,1776093347871,-500.0,0.0003443,60]
[420420651,1776093347921,-500.0,0.0003443,60]
[420420652,1776093347975,-500.0,0.0003443,60]
[420420653,1776093348032,-500.0,0.0003443,60]
[420420654,1776093348093,-500.0,0.0003443,60]
[420420655,1776093348155,-500.0,0.0003443,60]
[420420656,1776093348210,-500.0,0.0003443,60]
[420420657,1776093348281,-500.0,0.0003443,60]
[420420658,1776093348347,-899.8224044,0.0003443,60]
[420420659,1776093348407,-586.0894758,0.0003443,60]
[420420660,1776093348459,-313.1347374,0.0003443,60]
[420420661,1776093348520,-235.1695971,0.0003443,60]
[420420662,1776093348575,-211.6399725,0.0003443,60]
[420420663,1776093348625,-218.75,0.0003443,60]
[420420664,1776093348684,-695.1373843,0.0003443,60]
[420420665,1776093348735,-240.6509538,0.0003443,60]
[420420666,1776093348799,-500.0,0.0003443,60]
[420420667,1776093348858,-500.0,0.0003443,60]
[420420668,1776093348929,-226.4392719,0.0003443,60]
[420420669,1776093348983,-626.2276227,0.0003443,60]
[420420670,1776093349056,-500.0,0.0003443,60]
[420420671,1776093349106,-221.1687999,0.0003443,60]
[420420672,1776093349166,-500.0,0.0003443,60]
[420420673,1776093349218,-218.75,0.0003443,60]
[420420674,1776093349278,-500.0,0.0003443,60]
[420420675,1776093349339,-250.0,0.0003443,60]
[420420676,1776093349395,-280.9101217,0.0003443,60]
[420420677,1776093349462,-218.75,0.0003443,60]
[420420678,1776093349515,-500.0,0.0003443,60]
[420420679,1776093349593,-500.0,0.0003443,60]
[420420680,1776093349683,-500.0,0.0003443,60]
[420420681,1776093349781,-500.0,0.0003443,60]
[420420682,1776093349845,-500.0,0.0003443,60]
[420420683,1776093349902,-500.0,0.0003443,60]
[420420684,1776093349960,-500.0,0.0003443,60]
[420420685,1776093350017,-500.0,0.0003443,60]
[420420686,1776093350075,-500.0,0.0003443,60]
[420420687,1776093350134,-500.0,0.0003443,60]
[420420688,1776093350197,-500.0,0.0003443,60]
[420420689,1776093350269,-500.0,0.0003443,60]
[420420690,1776093350329,-500.0,0.0003443,60]
[420420691,1776093350387,-959.6550056,0.0003443,60]
[420420692,1776093350441,-1200.0,0.0003443,60]
[420420693,1776093350494,-1200.0,0.0003443,60]
[420420694,1776093350559,-500.0,0.0003443,60]
[420420695,1776093350621,-1200.0,0.0003443,60]
[420420696,1776093350690,-500.0,0.0003443,60]
[420420697,1776093350748,-1200.0,0.0003443,60]
[420420698,1776093350814,-500.0,0.0003443,60]
[420420699,1776093350890,-1200.0,0.0003443,60]
[420420700,1776093350967,-500.0,0.0003443,60]
[420420701,1776093351024,-1200.0,0.0003443,60]
[420420702,1776093351078,-500.0,0.0003443,60]
[420420703,1776093351137,-1200.0,0.0003443,60]
[420420704,1776093351201,-500.0,0.0003443,60]
[420420705,1776093351271,-1200.0,0.0003443,60]
[420420706,1776093351338,-500.0,0.0003443,60]
[420420707,1776093351403,-500.0,0.0003443,60]
[420420708,1776093351463,-1200.0,0.0003443,60]
[420420709,1776093351522,-500.0,0.0003443,60]
[420420710,1776093351605,-1200.0,0.0003443,60]
[420420711,1776093351692,-500.0,0.0003443,60]
[420420712,1776093351790,-500.0,0.0003443,60]
[420420713,1776093351865,-1200.0,0.0003443,60]
[420420714,1776093351934,-500.0,0.0003443,60]
[420420715,1776093351987,-500.0,0.0003443,60]
[420420716,1776093352036,-1200.0,0.0003443,60]
[420420717,1776093352089,-661.1348139,0.0003443,60]
[420420718,1776093352165,-500.0,0.0003443,60]
[420420719,1776093352226,-1200.0,0.0003443,60]
[420420720,1776093352299,-500.0,0.0003443,60]
[420420721,1776093352359,-1200.0,0.0003443,60]
[420420722,1776093352418,-500.0,0.0003443,60]
[420420723,1776093352491,-1200.0,0.0003443,60]
[420420724,1776093353129,-500.0,0.0003443,60]
[420420725,1776093353189,-500.0,0.0003443,60]
[420420726,1776093353245,-500.0,0.0003443,60]
[420420727,1776093353305,-812.4398066,0.0003443,60]
[420420728,1776093353361,-1200.0,0.0003443,60]
[420420729,1776093353412,-1200.0,0.0003443,60]
[420420730,1776093353467,-1200.0,0.0003443,60]
[420420731,1776093353531,-1200.0,0.0003443,60]
[420420732,1776093353579,-1200.0,0.0003443,60]
[420420733,1776093353627,-1200.0,0.0003443,60]
[420420734,1776093353680,-1200.0,0.0003443,60]
[420420735,1776093353746,-1200.0,0.0003443,60]
[420420736,1776093353809,-1200.0,0.0003443,60]
[420420737,1776093353863,-1200.0,0.0003443,60]
[420420738,1776093353930,-1200.0,0.0003443,60]
[420420739,1776093353987,-2156.9426402,0.0003443,60]
[420420740,1776093354036,-500.0,0.0003443,60]
[420420741,1776093354082,-500.0,0.0003443,60]
[420420742,1776093354131,-500.0,0.0003443,60]
[420420743,1776093354210,-500.0,0.0003443,60]
[420420744,1776093354265,-500.0,0.0003443,60]
[420420745,1776093354361,-721.7213534,0.0003443,60]
[420420746,1776093354461,-500.0,0.0003443,60]
[420420747,1776093354546,-777.4625708,0.0003443,60]
[420420748,1776093354618,-500.0,0.0003443,60]
[420420749,1776093354683,-500.0,0.0003443,60]
[420420750,1776093354744,-500.0,0.0003443,60]
[420420751,1776093354822,-500.0,0.0003443,60]
[420420752,1776093354874,-500.0,0.0003443,60]
[420420753,1776093354922,-500.0,0.0003443,60]
[420420754,1776093354979,-500.0,0.0003443,60]
[420420755,1776093355044,-500.0,0.0003443,60]
[420420756,1776093355107,-500.0,0.0003443,60]
[420420757,1776093355186,-500.0,0.0003443,60]
[420420758,1776093355253,-500.0,0.0003443,60]
[420420759,1776093355303,-500.0,0.0003443,60]
[420420760,1776093355358,-500.0,0.0003443,60]
[420420761,1776093355413,-500.0,0.0003443,60]
[420420762,1776093355486,-500.0,0.0003443,60]
[420420763,1776093355541,-500.0,0.0003443,60]
[420420764,1776093355614,-500.0,0.0003443,60]
[420420765,1776093355668,-500.0,0.0003443,60]
[420420766,1776093355722,-500.0,0.0003443,60]
[420420767,1776093355785,-912.5187024,0.0003443,60]
[420420768,1776093355843,-167.5,0.0003443,60]
[420420769,1776093355900,-500.0,0.0003443,60]
[420420770,1776093355946,-500.0,0.0003443,60]
[420420771,1776093355996,-500.0,0.0003443,60]
[420420772,1776093356045,-500.0,0.0003443,60]
[420420773,1776093356095,-500.0,0.0003443,60]
[420420774,1776093356147,-500.0,0.0003443,60]
[420420775,1776093356201,-510.0859991,0.0003443,60]
[420420776,1776093356258,-450.5576385,0.0003443,60]
[420420777,1776093356318,-176.455856,0.0003443,60]
[420420778,1776093356384,-2157.63323761,0.00034471,120]
[420420779,1776093356441,-491.10847667,0.000345,120]
[420420780,1776093356504,-778.0,0.00034672,120]
[420420781,1776093356571,-277.41,0.000347,90]
[420420782,1776093356623,-500.0,0.000348,120]
[420420783,1776093356677,-1444.0,0.00034849,120]
[420420784,1776093356734,-209.0,0.0003488,30]
[420420785,1776093356786,-31586.56705872,0.0003488,120]
[420420786,1776093356841,-1297.0,0.00034935,120]
[420420787,1776093356890,-4210.0,0.00034945,30]
[420420788,1776093356939,-741.0,0.00034945,30]
[420420789,1776093356988,-2161.0,0.00034949,120]
[420420790,1776093357037,-462.0,0.0003496,30]
[420420791,1776093357090,-1866.0,0.0003496,30]
[420420792,1776093357139,-580.0,0.0003496,30]
[420420793,1776093357205,-538.0,0.0003496,30]
[420420794,1776093357264,-713.0,0.0003496,30]
[420420795,1776093357323,-357.0,0.0003496,30]
[420420796,1776093357391,-627.0,0.0003496,30]
[420420797,1776093357478,-173.46560325,0.00035,120]
[420420798,1776093357568,-195.79726724,0.00035,120]
[420420799,1776093357638,-167.54107319,0.00035,120]
[420420800,1776093357710,-177.01073457,0.00035,120]
[420420801,1776093357781,-655.39936507,0.00035,120]
[420420802,1776093357866,-242.8225624,0.00035,120]
[420420803,1776093357948,-1384.71489045,0.00035,120]
[420420804,1776093358006,-24544.73613026,0.00035,120]
[420420805,1776093358075,-10090.42946692,0.00035,30]
[420420806,1776093358135,-5116.87121245,0.00035,120]
[420420807,1776093358188,-200.0,0.00035,120]
[420420808,1776093358257,-9365.73766511,0.00035,30]
[420420809,1776093358310,-7361.01613964,0.00035,120]
[420420810,1776093358365,-300.90678312,0.00035068,60]
[420420811,1776093358419,-1357.18,0.000351,90]
[420420812,1776093358492,-498.87497328,0.00035251,68]
[420420813,1776093358564,-233.0,0.00035291,120]
[420420814,1776093358648,-175.0,0.00035297,120]
[420420815,1776093358718,-960.80500518,0.00035535,102]
[420420816,1776093358793,-2153.0,0.00035616,120]
[420420817,1776093358847,-3080.0,0.00035616,120]
[420420818,1776093358923,-467.0,0.00035862,120]
[420420819,1776093359001,-893.67473045,0.000359,120]
[420420820,1776093359072,-276.80528271,0.000359,30]
[420420821,1776093359147,-4210.0,0.00035945,30]
[420420822,1776093359199,-741.0,0.00035945,30]
[420420823,1776093359259,-462.0,0.0003596,30]
[420420824,1776093359337,-1866.0,0.0003596,30]
[420420825,1776093359406,-580.0,0.0003596,30]
[420420826,1776093359469,-538.0,0.0003596,30]
[420420827,1776093359526,-713.0,0.0003596,30]
[420420828,1776093359597,-357.0,0.0003596,30]
[420420829,1776093359652,-627.0,0.0003596,30]
[420420830,1776093359705,-200.16278076,0.00036,40]
[420420831,1776093359763,-173.46560325,0.00036,120]
[420420832,1776093359824,-167.54107319,0.00036,120]
[420420833,1776093359884,-655.39936507,0.00036,120]
[420420834,1776093359938,-242.8225624,0.00036,120]
[420420835,1776093359997,-1384.71489045,0.00036,120]
[420420836,1776093360060,-2000.0,0.00036,120]
[420420837,1776093360139,-100089.28085784,0.00036,120]
[420420838,1776093360203,-2806.52,0.00036019,120]
[420420839,1776093360279,-1000.0,0.000364,120]
[420420840,1776093360349,-1392.47017,0.000364,120]
[420420841,1776093361046,-776.72,0.00036495,90]
[420420842,1776093361119,-7180.0,0.00036528,30]
[420420843,1776093361177,-1384.98,0.00036528,30]
[420420844,1776093361232,-3494.88907781,0.0003688,120]
[420420845,1776093361280,-209.0,0.0003689,30]
[420420846,1776093361331,-4210.0,0.00036945,30]
[420420847,1776093361385,-741.0,0.00036945,30]
[420420848,1776093361442,-462.0,0.0003696,30]
[420420849,1776093361514,-1866.0,0.0003696,30]
[420420850,1776093361578,-580.0,0.0003696,30]
[420420851,1776093361664,-538.0,0.0003696,30]
[420420852,1776093361754,-713.0,0.0003696,30]
[420420853,1776093361822,-357.0,0.0003696,30]
[420420854,1776093361897,-627.0,0.0003696,30]
[420420855,1776093361957,-1000.0,0.00037,60]
[420420856,1776093362028,-500.0,0.00037,120]
[420420857,1776093362263,-175.0,0.00037062,120]
[420420858,1776093362346,-1551.83611367,0.000372,120]
[420420859,1776093362437,-1551.83611367,0.000372,120]
[420420860,1776093362494,-1551.83611367,0.000372,120]
[420420861,1776093362559,-1551.83611367,0.000372,120]
[420420862,1776093362612,-1551.83611367,0.000372,120]
[420420863,1776093362664,-708.72,0.00037273,30]
[420420864,1776093362718,-533.42,0.00037273,30]
[420420865,1776093362768,-1000.0,0.000373,120]
[420420866,1776093362819,-1392.47017,0.000373,120]
[420420867,1776093362872,-1864.68,0.0003735,45]
[420420868,1776093362922,-154.44173407,0.00037671,30]
[420420869,1776093362972,-1480.38216197,0.0003781,30]
[420420870,1776093363034,-1480.38216197,0.0003781,30]
[420420871,1776093363109,-1480.38216197,0.0003781,30]
[420420872,1776093363186,-1480.38216197,0.0003781,30]
[420420873,1776093363251,-1480.38216197,0.0003781,30]
[420420874,1776093363331,-1480.38216197,0.0003781,30]
[420420875,1776093363383,-1480.38216197,0.0003781,30]
[420420876,1776093363444,-1480.38216197,0.0003781,30]
[420420877,1776093363512,-1480.38216197,0.0003781,30]
[420420878,1776093363567,-1480.38216197,0.0003781,30]
[420420879,1776093363634,-1480.38216197,0.0003781,30]
[420420880,1776093363688,-1480.38216197,0.0003781,30]
[420420881,1776093363748,-1480.38216197,0.0003781,30]
[420420882,1776093363808,-1480.38216197,0.0003781,30]
[420420883,1776093363898,-1480.38216197,0.0003781,30]
[420420884,1776093363976,-1480.38216197,0.0003781,30]
[420420885,1776093364253,-1480.38216197,0.0003781,30]
[420420886,1776093364307,-1480.38216197,0.0003781,30]
[420420887,1776093364363,-1480.38216197,0.0003781,30]
[420420888,1776093364416,-1480.38,0.0003781,30]
[420420889,1776093364469,-3454.22504459,0.0003781,30]
[420420890,1776093364526,-3454.22504459,0.0003781,30]
[420420891,1776093364583,-3454.22504459,0.0003781,30]
[420420892,1776093364634,-3454.22504459,0.0003781,30]
[420420893,1776093364694,-3454.22504459,0.0003781,30]
[420420894,1776093364745,-3454.22504459,0.0003781,30]
[420420895,1776093364833,-3454.22504459,0.0003781,30]
[420420896,1776093364905,-3454.22504459,0.0003781,30]
[420420897,1776093364982,-3454.22504459,0.0003781,30]
[420420898,1776093365054,-3454.22504459,0.0003781,30]
[420420899,1776093365118,-3454.22504459,0.0003781,30]
[420420900,1776093365192,-3454.22504459,0.0003781,30]
[420420901,1776093365257,-3454.22504459,0.0003781,30]
[420420902,1776093365317,-3454.22504459,0.0003781,30]